bitfinex/quotes_ETHUSD_20250110
["timestamp","ask_amount","ask_price","bid_price","bid_amount"]
[1736540524563,2.54127532,3284.2,3283.6,0.7745]
[1736540524870,2.54127532,3283.9,3283.6,0.7745]
[1736540525066,5.58644532,3283.9,3283.3,0.8284]
[1736540525237,5.38,3284.3,3283.6,3.04535]
[1736540525438,5.38,3284.3,3283.8,0.8284]
[1736540525643,5.38,3284.3,3283.8,3.87363]
[1736540526041,5.38,3284.3,3284.1,0.7903]
[1736540526244,2.54127532,3284.8,3284.1,3.83523]
[1736540526438,5.38,3285.0,3284.2,3.07523702]
[1736540526667,5.38,3285.0,3284.2,3.04479]
[1736540528054,5.38,3285.0,3284.1,0.7903]
[1736540528687,5.38,3285.0,3284.1,4.218751]
[1736540529371,8.42418,3285.0,3284.1,4.218751]
[1736540531377,3.04452,3284.6,3284.1,0.7903]
[1736540531943,2.54127532,3284.8,3284.1,3.83526]
[1736540532175,5.38,3285.0,3284.3,0.799]
[1736540533752,8.4242,3285.0,3284.3,0.799]
[1736540533951,2.54127532,3284.8,3284.3,0.799]
[1736540534151,3.59443,3284.7,3284.3,0.799]
[1736540534359,0.55,3284.7,3284.3,0.799]
[1736540535777,0.55,3284.4,3283.8,0.7546]
[1736540535951,0.55,3284.4,3283.1,0.7546]
[1736540535952,3.04509,3284.0,3283.1,0.7546]
[1736540536154,2.54127532,3284.1,3283.3,0.7546]
[1736540536476,2.54127532,3284.1,3283.3,3.80031]
[1736540536838,2.54127532,3284.1,3283.3,0.7546]
[1736540537043,2.54127532,3283.8,3283.3,0.7546]
[1736540541569,5.58653532,3283.8,3283.3,0.7546]
[1736540543690,2.54127532,3283.8,3283.3,0.7546]
[1736540544013,8.42478,3284.3,3283.4,0.03045478]
[1736540544173,5.38,3284.3,3283.5,0.7711]
[1736540545386,5.38,3284.3,3283.5,3.81662]
[1736540545605,5.38,3284.3,3283.5,1.15580718]
[1736540545873,2.54127532,3284.7,3283.7,0.7711]
[1736540546072,2.54127532,3284.7,3283.8,0.7711]
[1736540546299,5.58571532,3284.7,3283.8,3.81633]
[1736540547210,2.54127532,3284.7,3283.9,3.04514]
[1736540547419,2.54127532,3285.0,3284.0,0.8071]
[1736540547573,2.54127532,3285.0,3283.8,0.60803083]
[1736540547574,2.54127532,3284.7,3284.2,0.8071]
[1736540547774,2.54127532,3284.3,3283.9,0.8071]
[1736540547980,2.54127532,3284.0,3283.9,0.8071]
[1736540548514,5.58598532,3284.4,3283.9,0.8071]
[1736540548718,2.54127532,3284.1,3283.6,0.8071]
[1736540548888,3.09127532,3284.4,3283.6,3.85253]
[1736540549097,3.09127532,3284.4,3283.6,0.8071]
[1736540549401,5.58627532,3284.1,3283.6,0.8071]
[1736540549911,3.59509,3284.0,3283.6,0.8071]
[1736540550700,3.04473,3284.4,3283.1,3.04588]
[1736540550701,5.58653532,3283.8,3283.1,0.763]
[1736540550909,2.54127532,3283.8,3283.1,0.763]
[1736540551084,2.54127532,3283.5,3283.1,0.763]
[1736540551279,0.55,3283.1,3283.0,3.0]
[1736540552298,5.58712532,3283.2,3283.0,3.0]
[1736540552914,2.54127532,3283.2,3283.0,3.0]
[1736540553434,5.58653532,3283.8,3283.0,3.3763]
[1736540553638,2.54127532,3283.8,3283.1,0.8009]
[1736540554028,2.54127532,3283.5,3283.1,0.8009]
[1736540555901,5.58628532,3284.1,3283.2,0.03045678]
[1736540556095,2.54127532,3284.1,3283.3,0.8009]
[1736540556448,3.04468,3284.5,3283.5,0.7548]
[1736540556449,3.04469,3284.4,3283.5,0.7548]
[1736540556597,3.04469,3284.4,3283.5,3.8003]
[1736540556797,5.58589532,3284.5,3283.6,0.78525009]
[1736540556997,5.58589532,3284.5,3283.6,0.7548]
[1736540557632,5.58589532,3284.5,3283.7,0.03045009]
[1736540557940,5.58589532,3284.5,3283.6,0.7548]
[1736540559046,2.54127532,3284.5,3283.6,0.7548]
[1736540559244,2.54127532,3284.5,3283.8,0.7897]
[1736540559448,2.54127532,3284.5,3283.9,0.383502]
[1736540559648,2.54127532,3284.5,3283.8,0.7897]
[1736540559960,5.58588532,3284.5,3283.8,0.7897]
[1736540560169,2.54127532,3284.2,3283.8,0.7897]
[1736540561451,5.58621532,3284.2,3283.8,0.7897]
[1736540561653,3.59497,3284.1,3283.3,0.7829]
[1736540561949,2.54127532,3284.2,3283.3,3.85906354]
[1736540562113,2.54127532,3284.2,3283.4,0.44645494]
[1736540562447,2.54127532,3284.2,3283.5,0.8052]
[1736540563922,5.58623532,3284.2,3283.5,0.8052]
[1736540564124,0.55,3283.8,3283.5,0.8052]
[1736540564455,2.54127532,3283.6,3283.1,0.7619]
[1736540564615,2.54127532,3283.3,3283.1,0.7619]
[1736540564816,3.04582,3283.2,3283.0,3.0]
[1736540565152,0.55,3283.2,3283.0,3.0]
[1736540567357,3.59581,3283.2,3283.0,3.0]
[1736540567741,0.55,3283.2,3283.0,3.0]
[1736540568262,2.54127532,3283.3,3283.0,3.0]
[1736540568450,5.38,3283.4,3283.1,0.8303]
[1736540568918,2.54127532,3283.6,3283.1,0.8303]
[1736540570120,2.54127532,3283.9,3283.1,3.90661785]
[1736540570324,2.54127532,3283.9,3283.2,3.04578]
[1736540570521,2.54127532,3283.9,3283.3,0.39065379]
[1736540570749,2.54127532,3283.9,3283.1,0.8303]
[1736540571358,2.54127532,3283.6,3283.1,0.8303]
[1736540572365,0.55,3283.8,3283.1,0.8303]
[1736540572950,3.59525,3283.8,3283.1,0.8303]
[1736540574373,0.55,3283.8,3283.1,0.8303]
[1736540574563,0.55,3283.8,3283.2,0.7206736]
[1736540575226,2.54127532,3283.9,3283.2,3.7969296]
[1736540575651,2.54127532,3283.9,3283.3,0.7962]
[1736540577670,5.58671532,3283.6,3283.0,4.0962]
[1736540577966,5.58671532,3283.6,3283.0,3.7962]
[1736540579569,2.54127532,3283.6,3283.0,3.7962]
[1736540579863,5.58671532,3283.6,3283.0,3.7962]
[1736540580778,2.54127532,3283.9,3283.0,4.17582]
[1736540580971,5.58645532,3283.9,3283.0,7.2218]
[1736540581337,2.54127532,3283.9,3283.2,0.7826]
[1736540582867,5.58644532,3283.9,3283.2,0.7826]
[1736540583168,2.54127532,3283.9,3283.2,0.7826]
[1736540583344,2.54127532,3283.6,3283.2,0.7826]
[1736540584381,2.54127532,3283.6,3283.2,1.198822]
[1736540586175,3.04532,3283.8,3283.2,1.198822]
[1736540587259,0.55,3283.8,3283.2,0.7826]
[1736540587457,3.04553,3283.5,3283.2,0.7826]
[1736540588552,3.04553,3283.5,3283.0,3.0]
[1736540589718,3.04525,3283.8,3283.0,3.0]
[1736540589914,3.04525,3283.8,3283.2,0.8262]
[1736540590074,8.42508,3284.0,3283.3,0.03045431]
[1736540590274,3.0,3284.1,3283.4,0.8184]
[1736540590898,6.04498,3284.1,3283.4,0.8184]
[1736540592371,3.04479,3284.3,3283.5,0.03045229]
[1736540592596,3.04479,3284.3,3283.6,0.8184]
[1736540592876,6.04489,3284.2,3283.6,0.8184]
[1736540593115,8.58616532,3284.2,3283.6,0.8184]
[1736540594675,5.54127532,3284.2,3283.6,0.8184]
[1736540594874,2.54127532,3283.9,3283.6,0.8184]
[1736540595870,2.54127532,3283.9,3283.2,0.7836]
[1736540596076,3.04527,3283.8,3283.2,0.7836]
[1736540596276,3.04527,3283.8,3283.2,1.18506]
[1736540596807,3.04527,3283.8,3283.3,0.2282183]
[1736540597310,3.04527,3283.8,3283.3,0.49686037]
[1736540597544,5.54127532,3284.2,3283.5,0.8064]
[1736540597857,5.54127532,3284.2,3283.7,0.8064]
[1736540598147,5.58595532,3284.5,3283.9,0.7648]
[1736540598494,5.58595532,3284.5,3284.0,0.26864207]
[1736540599706,6.60247,3284.1,3284.0,0.26864207]
[1736540599949,13.54334267,3284.1,3284.0,0.26864207]
[1736540600151,12.74867,3284.1,3284.0,2.07e-06]
[1736540600437,3.04578,3283.3,3283.0,3.7994]
[1736540600639,5.58705532,3283.3,3283.0,3.7994]
[1736540601016,3.04582,3283.2,3283.0,3.7994]
[1736540603131,3.04565,3283.4,3283.0,3.7994]
[1736540605807,6.04553,3283.5,3283.0,3.7994]
[1736540606210,2.54127532,3283.3,3283.0,3.7994]
[1736540608837,5.58698532,3283.3,3283.0,3.0]
[1736540610517,3.5959,3283.1,3283.0,3.0]
[1736540610814,7.3545,3283.1,3283.0,3.0]
[1736540611123,12.757,3283.1,3283.0,3.0]
[1736540611325,12.757,3283.1,3281.4,0.231]
[1736540611326,3.04673,3282.2,3281.5,0.7706]
[1736540611546,5.58800532,3282.2,3281.5,0.7706]
[1736540614684,2.54127532,3281.9,3281.5,0.7706]
[1736540617039,2.54127532,3282.2,3281.5,0.7706]
[1736540617373,2.54127532,3282.2,3281.5,1.21521462]
[1736540617831,2.54127532,3282.2,3281.6,3.04729]
[1736540618032,2.54127532,3282.5,3281.7,0.03047017]
[1736540618238,2.54127532,3282.5,3281.9,0.8278]
[1736540618664,2.54127532,3282.5,3281.9,0.85826684]
[1736540618861,2.54127532,3282.5,3282.0,3.04691]
[1736540621169,2.54127532,3282.5,3281.9,0.8278]
[1736540621332,2.54127532,3282.5,3281.9,1.215287]
[1736540622374,2.54127532,3282.5,3281.9,1.83013098]
[1736540622535,3.04613,3282.9,3281.9,1.83013098]
[1736540622536,0.55,3282.9,3282.2,0.8319]
[1736540622732,2.54127532,3282.8,3282.2,0.8319]
[1736540626073,7.92127532,3283.4,3282.4,0.8062]
[1736540626276,5.38,3283.4,3282.9,3.04606]
[1736540626439,5.38,3283.4,3283.0,0.83665647]
[1736540626640,5.38,3283.4,3283.0,1.22492812]
[1736540626848,5.38,3283.4,3283.0,1.19447165]
[1736540627383,5.38,3283.4,3283.0,0.8062]
[1736540627745,7.92127532,3283.4,3283.0,0.8062]
[1736540629145,5.38,3283.4,3283.0,0.8062]
[1736540630960,7.92127532,3283.4,3283.0,0.8062]
[1736540631169,2.54127532,3283.1,3282.5,0.8007]
[1736540631669,2.54127532,3282.8,3282.3,0.8007]
[1736540633005,5.58725532,3283.1,3282.3,0.8007]
[1736540633372,5.58725532,3283.1,3282.4,0.03046345]
[1736540633569,5.58725532,3283.1,3282.3,0.8007]
[1736540633799,5.58725532,3283.1,3282.3,1.26773556]
[1736540634353,3.04599,3283.0,3282.3,0.8007]
[1736540635351,2.54127532,3282.8,3282.3,0.8007]
[1736540637950,3.04599,3283.0,3282.3,0.8007]
[1736540638603,2.54127532,3283.1,3282.4,0.03046291]
[1736540639309,2.54127532,3283.1,3282.3,3.84733]
[1736540639594,7.92127532,3283.4,3282.7,3.04626]
[1736540639798,7.92127532,3283.4,3282.7,3.07671877]
[1736540640366,5.38,3283.4,3282.8,0.7949]
[1736540640605,5.38,3283.4,3282.2,0.228]
[1736540640606,5.38,3283.4,3282.9,0.82535631]
[1736540640780,5.38,3283.4,3282.9,0.7949]
[1736540640981,5.38,3283.4,3283.0,0.03045586]
[1736540641190,5.38,3283.4,3283.1,3.04583]
[1736540641403,5.38,3283.4,3283.2,0.30762859]
[1736540641588,5.38,3283.4,3283.2,3.35340859]
[1736540641790,2.54127532,3284.0,3283.3,0.8132]
[1736540642283,5.58634532,3284.0,3283.3,0.8132]
[1736540642478,2.54127532,3283.7,3283.1,0.8209]
[1736540645399,2.54127532,3283.4,3282.6,0.7537]
[1736540645630,2.54127532,3283.4,3282.6,3.80002]
[1736540645835,2.54127532,3283.4,3282.6,4.202822]
[1736540646016,0.7664,3283.6,3282.8,3.04616]
[1736540646216,0.55,3283.6,3282.9,0.7671]
[1736540646604,5.58689532,3283.4,3282.7,0.7671]
[1736540646808,2.54127532,3283.4,3282.7,0.7671]
[1736540647006,2.54127532,3283.4,3282.8,0.0304583]
[1736540647209,3.04552,3283.6,3282.8,0.0304583]
[1736540647606,3.04552,3283.6,3282.7,3.81336]
[1736540647811,2.54127532,3283.4,3282.7,0.7671]
[1736540648013,2.54127532,3283.4,3282.0,0.7881]
[1736540648014,2.54127532,3282.8,3282.0,0.7881]
[1736540648224,2.54127532,3282.8,3282.0,3.83501]
[1736540648435,2.54127532,3282.8,3282.0,4.241311]
[1736540648633,2.54127532,3282.8,3282.1,0.61361105]
[1736540649005,2.54127532,3282.8,3282.1,0.84151631]
[1736540649219,5.58721532,3283.1,3282.2,0.03046343]
[1736540649433,5.58721532,3283.1,3282.2,3.07719343]
[1736540649640,2.54127532,3283.1,3282.3,0.8164]
[1736540649844,2.54127532,3283.1,3282.3,3.86295]
[1736540650045,2.54127532,3283.1,3282.4,3.07700103]
[1736540650265,2.54127532,3283.1,3282.5,3.04641]
[1736540651400,2.54127532,3283.1,3282.3,3.863]
[1736540651525,2.54127532,3283.1,3282.3,4.31066111]
[1736540652154,2.54127532,3283.1,3282.4,0.22800267]
[1736540652564,3.04608,3283.0,3282.4,0.22800267]
[1736540652743,3.87548,3283.0,3282.4,0.22800267]
[1736540652951,3.87548,3283.0,3282.3,0.8164]
[1736540653740,5.58745532,3282.8,3282.1,1.37581105]
[1736540654070,2.54127532,3282.8,3282.1,1.37581105]
[1736540654967,5.58746532,3282.8,3282.1,0.7622]
[1736540655666,2.54127532,3282.2,3281.4,0.772]
[1736540656031,2.54127532,3281.8,3281.4,0.772]
[1736540656441,6.41731532,3282.1,3281.4,0.772]
[1736540656876,3.04693,3282.0,3281.4,0.772]
[1736540657538,2.54127532,3281.8,3281.1,0.8043]
[1736540657932,2.54127532,3281.5,3281.1,0.8043]
[1736540658134,2.54127532,3281.5,3280.7,3.0481]
[1736540658135,2.54127532,3281.5,3280.8,3.87242]
[1736540658449,2.54127532,3281.5,3280.9,0.410042]
[1736540658647,0.7864,3281.7,3280.9,0.410042]
[1736540658847,0.7864,3281.7,3280.9,3.04793]
[1736540659275,2.54127532,3281.8,3281.0,3.04783]
[1736540660270,2.54127532,3281.5,3281.0,0.62106078]
[1736540660611,0.8116,3281.4,3280.8,0.8244]
[1736540660743,2.54127532,3281.2,3280.5,0.7975]
[1736540660961,2.54127532,3281.2,3280.5,1.182086]
[1736540661291,2.54127532,3281.2,3280.2,0.7975]
[1736540661292,3.04776,3281.1,3280.2,0.7975]
[1736540661432,2.54127532,3280.9,3280.2,0.7975]
[1736540662772,3.42317017,3281.8,3280.0,0.7725]
[1736540662773,2.54127532,3280.3,3280.0,0.7725]
[1736540662972,2.54127532,3280.3,3279.7,1.0005]
[1736540663172,2.54127532,3280.3,3279.7,1.406212]
[1736540664395,2.30718532,3280.3,3279.7,1.0005]
[1736540665058,2.30718532,3280.3,3279.7,4.04955]
[1736540665257,2.54127532,3280.6,3279.7,4.65630789]
[1736540665458,2.54127532,3280.6,3279.8,3.04887]
[1736540665723,2.54127532,3280.6,3279.9,3.07930458]
[1736540665999,0.763,3280.8,3280.0,0.30793046]
[1736540666207,2.54127532,3280.9,3280.4,0.7615]
[1736540666358,2.54127532,3280.9,3280.4,0.79198075]
[1736540666859,2.54127532,3280.9,3280.4,0.7615]
[1736540667059,2.54127532,3280.9,3280.4,0.79198087]
[1736540667365,3.08735408,3281.1,3280.4,0.7615]
[1736540667578,3.08735408,3281.1,3280.4,1.142492]
[1736540667791,3.04785,3281.0,3280.0,3.04875]
[1736540667992,3.08735408,3280.8,3280.0,3.04875]
[1736540670509,0.8048,3280.7,3279.9,0.8279]
[1736540670690,0.8048,3280.7,3280.0,3.04877]
[1736540670895,0.8048,3280.7,3279.9,0.8279]
[1736540671211,0.8048,3280.7,3280.0,0.410483]
[1736540671370,3.04822,3280.6,3279.9,0.8279]
[1736540671567,3.04822,3280.6,3279.7,0.60675789]
[1736540672006,3.04822,3280.6,3279.7,3.65580789]
[1736540673803,3.04822,3280.6,3279.7,0.60675789]
[1736540674014,0.8163,3280.3,3279.6,1.0559]
[1736540674169,0.8163,3280.3,3279.7,0.410506]
[1736540675406,0.8163,3280.3,3279.6,0.59827598]
[1736540675664,3.04798,3280.9,3279.1,3.0496]
[1736540675665,0.8163,3279.9,3279.1,3.0496]
[1736540675772,0.8163,3279.9,3279.0,1.007]
[1736540676111,3.86518,3279.9,3279.0,1.60368872]
[1736540676306,3.86518,3279.9,3279.0,1.84103859]
[1736540676307,3.04899,3279.8,3279.0,1.84103859]
[1736540676696,0.8163,3279.9,3279.0,4.89071859]
[1736540677101,3.86517,3279.9,3279.0,4.89071859]
[1736540677299,0.8163,3279.9,3279.0,1.84103859]
[1736540677501,0.8163,3279.9,3279.0,4.42537872]
[1736540677701,3.86519,3279.9,3279.0,4.42537872]
[1736540677921,3.86519,3279.9,3279.0,1.37568872]
[1736540678693,6.13651408,3279.6,3278.7,3.88224]
[1736540679015,3.04928,3279.5,3278.7,0.8323]
[1736540679315,0.824,3279.4,3278.5,3.89869237]
[1736540679526,0.824,3279.4,3278.6,0.39258006]
[1736540679847,0.824,3279.4,3278.6,0.4230775]
[1736540680143,3.05017,3278.5,3277.5,3.0511]
[1736540680364,3.87417,3278.5,3277.5,3.05105]
[1736540681145,4.42417,3278.5,3277.5,3.05105]
[1736540681308,3.87417,3278.5,3277.4,3.05117]
[1736540681508,3.87417,3278.5,3277.3,1.0603]
[1736540681509,3.87417,3278.5,3277.3,1.65579758]
[1736540681724,4.42417,3278.5,3277.3,1.65579758]
[1736540681904,4.42417,3278.5,3277.2,3.05131]
[1736540682109,4.42417,3278.5,3276.8,0.0075]
[1736540682110,4.44667,3278.5,3277.0,3.05153]
[1736540682844,4.44667,3278.5,3276.8,3.05173]
[1736540683045,4.44667,3278.5,3277.0,3.05152]
[1736540683252,4.44667,3278.5,3277.1,3.05145]
[1736540683406,4.44667,3278.5,3277.2,3.05138]
[1736540683827,4.44667,3278.5,3277.0,0.03051161]
[1736540684055,4.44667,3278.5,3277.3,3.05127]
[1736540684543,0.824,3278.5,3277.6,3.82073]
[1736540684745,0.824,3278.5,3277.6,0.7698]
[1736540685057,0.824,3278.5,3277.7,3.0509]
[1736540685347,3.87417,3278.5,3277.6,0.7698]
[1736540685514,4.42417,3278.5,3277.4,3.05115]
[1736540685715,9.80417,3278.5,3277.5,3.0511]
[1736540686032,9.80417,3278.5,3277.3,0.8298]
[1736540686236,9.80417,3278.5,3277.4,3.05117]
[1736540688350,9.80417,3278.5,3277.5,3.05107]
[1736540688715,9.80417,3278.5,3277.6,3.05094]
[1736540688716,6.204,3278.5,3277.6,3.05094]
[1736540688933,6.204,3278.5,3277.7,3.05088]
[1736540689761,6.204,3278.5,3277.8,3.05081]
[1736540690326,5.38,3278.5,3278.0,0.03050653]
[1736540690698,5.38,3278.5,3278.1,3.05053]
[1736540691026,5.38,3278.5,3277.9,0.9730099]
[1736540691027,6.1523,3278.5,3277.9,0.9730099]
[1736540691868,5.38,3278.5,3277.9,4.0236599]
[1736540693248,5.38,3278.5,3277.9,0.9730099]
[1736540693435,7.93146825,3278.5,3277.9,0.9730099]
[1736540693965,7.93146825,3278.5,3277.9,0.1695099]
[1736540694162,8.74606825,3278.5,3277.9,0.1695099]
[1736540695693,11.79623825,3278.5,3277.9,0.1695099]
[1736540696068,8.74606825,3278.5,3277.9,0.1695099]
[1736540696571,7.93146825,3278.5,3277.9,0.1695099]
[1736540696736,5.38,3278.5,3278.0,3.05063]
[1736540696935,7.93146825,3278.5,3277.9,0.1695099]
[1736540697647,7.93146825,3278.5,3277.9,3.2201899]
[1736540697831,5.38,3278.5,3277.9,3.2201899]
[1736540698457,7.93146825,3278.5,3277.9,3.2201899]
[1736540698655,7.93146825,3278.5,3277.9,0.1695099]
[1736540698858,5.38,3278.5,3277.9,0.1695099]
[1736540700569,5.38,3278.5,3277.9,3.2202399]
[1736540700776,3.04999,3278.7,3277.9,0.1695099]
[1736540701577,3.37516825,3278.8,3277.9,3.2201699]
[1736540701874,3.37516825,3278.8,3277.9,0.1695099]
[1736540702089,6.42514825,3278.8,3277.9,0.1695099]
[1736540702463,6.42514825,3278.8,3277.9,3.2202199]
[1736540703565,3.04975,3279.0,3277.9,0.1695099]
[1736540703768,3.31836825,3279.1,3278.4,0.7851082]
[1736540703958,0.7669,3279.1,3278.4,0.7851082]
[1736540704378,3.0,3279.3,3278.5,0.38354382]
[1736540704584,6.36774825,3279.4,3278.5,0.38354382]
[1736540705186,3.31836825,3279.4,3278.6,0.0304988]
[1736540705360,2.55146825,3279.4,3278.4,3.8353282]
[1736540705692,2.55146825,3279.4,3278.7,0.758]
[1736540705902,2.55146825,3279.4,3278.7,3.80794]
[1736540706075,2.55146825,3279.1,3278.8,0.380794]
[1736540706269,2.55146825,3279.1,3278.7,0.758]
[1736540706470,5.38,3279.5,3278.7,0.758]
[1736540706471,2.55146825,3279.4,3278.7,3.80796]
[1736540708472,2.55146825,3279.4,3278.8,3.30828636]
[1736540708673,3.34356825,3279.7,3278.9,3.04975]
[1736540709078,3.34356825,3279.7,3278.9,3.45331903]
[1736540709604,3.34356825,3279.7,3278.9,0.40356903]
[1736540710203,3.34356825,3279.7,3278.8,3.04986]
[1736540712797,3.34356825,3279.7,3278.7,0.758]
[1736540712798,3.34356825,3279.7,3278.9,0.03049466]
[1736540712994,3.0,3279.9,3279.0,0.8082]
[1736540713195,3.0,3279.9,3279.0,3.85788]
[1736540713573,3.0,3279.9,3279.0,0.8082]
[1736540713772,8.74416825,3280.0,3279.0,0.8082]
[1736540713993,8.74416825,3280.0,3279.1,0.03049186]
[1736540713994,5.38,3280.0,3279.1,0.03049186]
[1736540714198,3.86117,3280.4,3279.7,0.8082]
[1736540714381,5.55146825,3280.3,3279.7,0.8082]
[1736540715609,3.86117,3280.4,3279.7,0.8082]
[1736540715610,5.59969825,3280.6,3279.7,0.8082]
[1736540715770,2.55146825,3280.6,3279.7,0.8082]
[1736540716273,3.0,3280.5,3279.7,0.8082]
[1736540716595,3.0,3280.5,3279.8,0.385732]
[1736540717405,2.55146825,3280.6,3279.8,0.385732]
[1736540717711,2.55146825,3280.3,3279.7,0.8082]
[1736540719073,2.55146825,3280.0,3279.3,0.7651]
[1736540719298,0.811,3280.1,3279.3,0.7651]
[1736540720835,3.8597,3280.1,3279.3,0.7651]
[1736540721920,3.8597,3280.1,3279.3,3.81452]
[1736540722121,2.55146825,3280.6,3279.7,3.049]
[1736540722325,5.59971825,3280.6,3279.8,0.796]
[1736540722620,2.55146825,3280.6,3279.8,0.796]
[1736540722783,3.04835,3280.5,3279.8,0.796]
[1736540723815,2.55146825,3280.6,3279.8,0.796]
[1736540724021,5.59972825,3280.6,3279.8,0.796]
[1736540724388,3.04831,3280.5,3279.8,0.796]
[1736540725017,2.55146825,3280.3,3279.8,0.796]
[1736540725219,2.55146825,3280.6,3279.9,0.03048705]
[1736540725513,2.55146825,3281.2,3280.1,0.7704]
[1736540725707,3.04776,3281.1,3280.1,3.81905]
[1736540725914,2.55146825,3280.9,3280.1,1.175105]
[1736540726204,5.59943825,3280.9,3280.1,0.7704]
[1736540726744,2.55146825,3280.2,3279.5,3.04919]
[1736540727043,2.55146825,3279.7,3279.3,0.7819]
[1736540727204,2.55146825,3279.7,3278.7,3.04996]
[1736540727404,3.04915,3279.6,3278.8,1.123396]
[1736540727604,2.55146825,3279.7,3278.8,4.173266]
[1736540728529,2.55146825,3279.7,3278.9,3.04972]
[1736540728736,2.55146825,3280.0,3279.1,3.04953]
[1736540728916,2.55146825,3280.0,3279.3,0.802]
[1736540729507,6.1729,3280.2,3279.3,3.85134]
[1736540730201,6.1729,3280.2,3279.3,3.82134]
[1736540730407,9.22149,3280.2,3279.3,3.82134]
[1736540730640,3.84149,3280.2,3279.3,3.82134]
[1736540731250,5.60031825,3280.0,3279.3,0.772]
[1736540731451,3.04887,3279.9,3279.3,0.772]
[1736540731747,3.04897,3279.8,3279.3,0.772]
[1736540733455,2.55146825,3279.4,3278.9,0.802]
[1736540733638,0.761,3279.6,3278.9,0.802]
[1736540734607,2.55146825,3279.7,3278.9,0.802]
[1736540735230,0.7681,3279.9,3278.5,0.7835]
[1736540735231,5.60110825,3279.1,3278.5,0.7835]
[1736540735422,3.04972,3279.0,3278.4,3.69386846]
[1736540735630,2.55146825,3279.1,3278.4,3.69386846]
[1736540735838,5.60141825,3278.8,3278.4,3.69386846]
[1736540736437,2.55146825,3278.8,3278.4,3.69386846]
[1736540737112,0.8009,3279.3,3278.4,4.14160531]
[1736540737113,2.55146825,3279.1,3278.4,4.14160531]
[1736540737316,2.55146825,3279.1,3278.4,3.69386846]
[1736540737647,5.60115825,3279.1,3278.4,3.69386846]
[1736540739260,2.55146825,3279.1,3278.4,3.69386846]
[1736540739461,5.60114825,3279.1,3278.4,3.69386846]
[1736540739645,2.55146825,3278.8,3278.4,0.0271082]
[1736540739853,5.60142825,3278.8,3278.4,0.0271082]
[1736540740741,2.55146825,3278.8,3278.4,0.0271082]
[1736540740934,5.60107825,3279.1,3278.4,0.0271082]
[1736540741133,3.04972,3279.0,3278.4,0.0271082]
[1736540742356,3.0,3279.3,3278.6,0.7877]
[1736540743547,5.38,3279.4,3278.6,0.7877]
[1736540743720,5.38,3279.4,3279.0,0.8036]
[1736540743923,2.55146825,3279.7,3279.0,0.8340957]
[1736540744157,2.55146825,3279.7,3279.0,0.8036]
[1736540744489,2.55146825,3279.7,3279.1,3.0496]
[1736540744844,2.55146825,3279.7,3279.0,0.8036]
[1736540745436,2.55146825,3279.7,3279.0,3.85329]
[1736540745638,2.55146825,3279.7,3279.0,4.238619]
[1736540746449,2.55146825,3279.7,3279.1,3.0496]
[1736540747436,2.55146825,3280.0,3279.3,0.8217]
[1736540747664,2.55146825,3280.0,3279.3,3.9015505]
[1736540748325,2.55146825,3279.7,3279.3,0.8217]
[1736540748658,2.55146825,3279.4,3278.9,0.8155]
[1736540749247,2.55146825,3279.4,3278.9,3.86529]
[1736540749432,2.55146825,3279.7,3278.9,3.86529]
[1736540750047,2.55146825,3279.7,3278.9,0.8155]
[1736540751177,2.55146825,3279.7,3278.9,3.86528]
[1736540751418,2.55146825,3279.7,3279.1,3.04959]
[1736540752337,2.55146825,3279.4,3278.9,0.8155]
[1736540752539,2.55146825,3279.1,3278.5,0.7833]
[1736540752741,0.8052,3278.7,3278.4,0.0271082]
[1736540753045,8.42903,3279.8,3278.4,0.0271082]
[1736540753046,2.55146825,3278.5,3278.4,0.0271082]
[1736540753428,2.55146825,3278.8,3278.4,0.0271082]
[1736540754081,2.55146825,3278.8,3278.5,0.7833]
[1736540755077,2.55146825,3279.1,3278.5,0.7833]
[1736540756571,5.60109825,3279.1,3278.5,0.7833]
[1736540757678,2.55146825,3278.8,3278.5,0.7833]
[1736540758672,2.55146825,3279.1,3278.5,0.7833]
[1736540759857,2.55146825,3279.4,3278.5,0.7833]
[1736540760181,2.55146825,3279.4,3278.6,3.08055803]
[1736540760768,2.55146825,3279.4,3278.7,0.8251]
[1736540761663,5.60080825,3279.4,3278.7,0.8251]
[1736540762478,3.04944,3279.3,3278.7,0.8251]
[1736540762888,2.55146825,3279.1,3278.4,0.8096082]
[1736540763382,2.55146825,3278.8,3278.4,0.8096082]
[1736540763687,3.05002,3278.7,3278.4,0.0271082]
[1736540764178,2.55146825,3278.8,3278.4,0.0271082]
[1736540764179,9.98483825,3278.5,3278.4,0.0271082]
[1736540764390,9.99983825,3278.5,3278.4,0.0271082]
[1736540764543,15.37983825,3278.5,3278.4,8.2e-06]
[1736540764744,16.18201092,3278.5,3278.4,8.2e-06]
[1736540765971,16.78177091,3278.5,3278.4,8.2e-06]
[1736540766284,15.98709824,3278.5,3278.4,8.2e-06]
[1736540766646,12.82837,3278.5,3278.4,8.2e-06]
[1736540766847,12.80587,3278.5,3278.4,8.2e-06]
[1736540770375,12.82837,3278.5,3278.4,8.2e-06]
[1736540777412,13.21190017,3278.5,3278.4,8.2e-06]
[1736540777569,13.43990017,3278.5,3278.4,8.2e-06]
[1736540777767,13.85854267,3278.5,3278.4,8.2e-06]
[1736540778587,13.05637,3278.5,3278.4,8.2e-06]
[1736540779167,3.5725,3278.4,3277.9,0.1695099]
[1736540779426,9.17460825,3278.0,3277.9,0.1695099]
[1736540780426,9.99920825,3278.0,3277.9,0.1695099]
[1736540783621,9.15210825,3278.0,3277.9,0.1695099]
[1736540789435,5.60210825,3278.0,3277.9,0.1695099]
[1736540790073,2.55146825,3278.0,3277.9,0.1695099]
[1736540790276,5.60210825,3278.0,3277.9,0.1695099]
[1736540791401,2.55146825,3278.0,3277.9,0.1695099]
[1736540793678,5.60210825,3278.0,3277.9,0.1695099]
[1736540797623,2.55146825,3278.6,3277.9,0.1695099]
[1736540797809,2.55146825,3278.6,3278.0,0.39976699]
[1736540798217,5.60155825,3278.6,3278.0,0.39976699]